Cogmind - Beta 14 @@@ ROGUE MODE // 2024.08.31 @ 16:36:44 Player: SnowyImp Result: Destroyed by P-70 Sage with Tesla Rifle Performance ------------- Evolutions (6) 3000 Regions Visited (15) 3000 Robots Destroyed (27) 135 Value Destroyed (931) 931 Prototype IDs (6) 120 Alien Tech Used (0) 0 Bonus (834) 834 TOTAL SCORE: 8020 Bonus ------- Follower Combat Kills 334 Entered DSFs 500 Cogmind --------- Core Integrity 0/1150 Matter 193/300 Energy 93/100 System Corruption 3% Temperature Cool (0) Movement Hovering (70) Location -4/Factory Parts ------- > --- POWER (1) -------- (None) > --- PROPULSION (6) --- Flexi-carbon Leg Antigrav System > --- UTILITY (10) ----- (None) > --- WEAPON (2) ------- Scythe > --- INVENTORY (5) ---- Light Fission Core Light Antimatter Reactor Nanoactuators Hacking Suite Dual-blade Saw Peak State ------------ > --- POWER ------------ Light Fission Core > --- PROPULSION ------- Gyrokinetic Inverter Q-thruster > --- UTILITY ---------- Machine Analyzer Core Analyzer Transmission Jammer System Shield System Shield > --- WEAPON ----------- Dual-blade Saw Dual-blade Saw > --- INVENTORY -------- Centrium Leg Dual-blade Saw [Rating: 51] Favorites ----------- Power Nuclear Core Engine Ion Engine Power Core Nuclear Core Reactor Light Antimatter Reactor Propulsion VTOL Module Treads Light Treads Leg Enhanced Flexi-carbon Leg Wheel Centrium Wheel Hover Unit Gyrokinetic Inverter Flight Unit VTOL Module Utility Core Analyzer Device Advanced Weight Redist. System Processor Core Analyzer Hackware System Shield Protection Improved Light Armor Plating Weapon Heavy Mace Energy Gun Small Laser Ballistic Cannon Linear Accelerator Impact Weapon Heavy Mace Slashing Weapon Power Sword Piercing Weapon Spear Special Melee Weapon Datajack Build | -11 -10 -10 -10 -9 -8 -7 -7 -7 -6 -6 -5 -5 -5 -5 -4 ------- Run | Yrd Mat Min Exi Min Mat Fac Low Low Fac DSF Fac Was Fac Upp Fac Slots Evolved 12 | . . . . . 4 2 . . 2 . 2 . . . 2 Power . | . . . . . . . . . . . . . . . . Propulsion 4 | . . . . . 2 . . . . . . . . . 2 Utility 8 | . . . . . 2 2 . . 2 . 2 . . . . Weapon . | . . . . . . . . . . . . . . . . Parts Attached 100 | 4 2 2 . . 6 16 9 4 . 8 10 3 9 . 27 Power 12 | 1 . . . . . 2 . . . 1 1 1 1 . 5 Engine 2 | 1 . . . . . . . . . . 1 . . . . Core 6 | . . . . . . 2 . . . 1 . . . . 3 Reactor 4 | . . . . . . . . . . . . 1 1 . 2 Propulsion 30 | 2 2 2 . . 4 1 2 1 . 1 2 . 2 . 11 Treads 3 | 2 1 . . . . . . . . . . . . . . Leg 5 | . 1 . . . . . . . . . 1 . 2 . 1 Wheel 1 | . . . . . . . . . . . . . . . 1 Hover 2 | . . . . . . . . . . . . . . . 2 Flight 19 | . . 2 . . 4 1 2 1 . 1 1 . . . 7 Utility 28 | . . . . . 2 10 . 1 . 2 3 1 5 . 4 Device 14 | . . . . . 1 3 . . . 2 2 1 1 . 4 Storage . | . . . . . . . . . . . . . . . . Processor 5 | . . . . . . 2 . 1 . . 1 . 1 . . Hackware 3 | . . . . . . 1 . . . . . . 2 . . Protection 6 | . . . . . 1 4 . . . . . . 1 . . Artifact . | . . . . . . . . . . . . . . . . Weapon 30 | 1 . . . . . 3 7 2 . 4 4 1 1 . 7 Energy Gun 2 | 1 . . . . . . . . . . . . . . 1 Energy Cannon . | . . . . . . . . . . . . . . . . Ballistic Gun . | . . . . . . . . . . . . . . . . Ballistic Cannon 1 | . . . . . . . . . . . . . 1 . . Launcher . | . . . . . . . . . . . . . . . . Special Weapon . | . . . . . . . . . . . . . . . . Impact Weapon 4 | . . . . . . 2 2 . . . . . . . . Slashing Weapon 16 | . . . . . . . . 2 . 4 4 . . . 6 Piercing Weapon 1 | . . . . . . 1 . . . . . . . . . Special Melee Weapon 6 | . . . . . . . 5 . . . . 1 . . . Unidentified Prototypes 5 | . . . . . 1 . . . . . . 1 2 . 1 Parts Lost 55 | . 4 . . . 3 1 2 . . 12 5 1 7 . 20 Power 4 | . 1 . . . . . . . . . 1 . 1 . 1 Propulsion 24 | . 2 . . . 2 1 2 . . 5 2 . 2 . 8 Utility 17 | . . . . . 1 . . . . 5 . 1 2 . 8 Weapon 10 | . 1 . . . . . . . . 2 2 . 2 . 3 Highest Loss Streak 10 | . 3 . . . 2 1 2 . . 10 3 1 6 . 7 To Critical Strikes . | . . . . . . . . . . . . . . . . Average Slot Usage (%) 46 | . 54 26 28 28 43 66 86 96 . 45 29 20 26 23 30 Engine 1 | . 13 . . . . . . . . . 1 . . . . Core 1 | . . . . . . 4 7 7 . 1 . . . . . Treads 2 | . 24 3 . . . . . . . . . . . . . Leg 1 | . 2 3 . . . . . . . . 1 . 4 . . Flight 13 | . . 19 28 28 32 25 18 26 . 11 1 . . . 6 Device 6 | . . . . . 9 14 15 15 . 6 4 9 3 . 4 Processor 6 | . . . . . . 5 15 19 . 15 13 9 6 11 6 Hackware 2 | . . . . . . . 7 3 . . . . 4 11 6 Protection 2 | . . . . . 1 6 7 7 . 1 . . . . . Energy Gun 1 | . 12 . . . . . . . . . . . . . . Impact Weapon 1 | . . . . . . 7 10 1 . . . . . . . Slashing Weapon 1 | . . . . . . . . 13 . 7 4 . . . 1 Peak Build Rating 51 | 4 4 2 2 2 19 43 39 44 44 46 30 25 44 14 51 Average Rating 20 | 3 3 1 2 2 14 29 36 41 44 25 21 15 20 14 26 On Entrance 15 | . 4 2 2 2 2 12 39 35 44 44 9 15 12 14 14 Naked Turns 41 | . . . . . . . . . . . . . . . 41 Heaviest Build 23 | 6 6 . . . 9 23 17 18 18 18 13 3 1 . 16 Greatest Support 43 | 40 40 10 8 8 18 23 23 21 18 18 15 3 43 3 20 Greatest Overweight (x) 1 | . . . . . . . 1 . . 1 1 . . . 1 Average Overweight (x) . | . . . . . . . . . . . . . . . . Largest Inventory Capacity 5 | 5 5 5 5 5 5 5 5 5 5 5 5 5 5 5 5 Average Capacity 5 | 5 5 5 5 5 5 5 5 5 5 5 5 5 5 5 5 Most Carried 5 | . 2 2 2 2 4 5 5 5 5 5 5 5 5 2 5 Average Carried 3 | . 1 1 2 2 2 3 5 4 5 5 2 2 4 2 3 Final Capacity 5 | 5 5 5 5 5 5 5 5 5 5 5 5 5 5 5 5 Final Carried 5 | . 1 2 2 2 4 5 5 5 5 5 1 5 2 2 5 Class Distribution -------------------- 53% | Mutant 15% | Hacker-Mutant 15% | Sprinter 14% | Scavenger-Sprinter Dominant Class ---------------- Mutant | -10/Materials Mutant | -10/Mines Mutant | -10/Exiles Mutant | -9/Mines Mutant | -8/Materials Sprinter | -7/Factory Scavenger-Sprinter | -7/Lower Caves Scavenger-Sprinter | -7/Lower Caves Scavenger-Sprinter | -6/Factory Sprinter | -6/DSF Mutant | -5/Factory Mutant | -5/Waste Mutant | -5/Factory Hacker-Mutant | -5/Upper Caves Hacker-Mutant | -4/Factory Resources | -11 -10 -10 -10 -9 -8 -7 -7 -7 -6 -6 -5 -5 -5 -5 -4 ----------- Run | Yrd Mat Min Exi Min Mat Fac Low Low Fac DSF Fac Was Fac Upp Fac Matter Collected 794 | . 110 97 . . . 91 77 99 . 25 54 . 2 . 239 Remotely . | . . . . . . . . . . . . . . . . Salvage Created 988 | . 120 . . . . 234 101 . . 118 143 . . . 272 Parts 46 | . 10 . . . . 10 3 . . 7 3 . . . 13 Haulers Intercepted . | . . . . . . . . . . . . . . . . Recyclers Shooed 1 | . 1 . . . . . . . . . . . . . . Parts Field Recycled . | . . . . . . . . . . . . . . . . Retrieved Matter . | . . . . . . . . . . . . . . . . Parts Self-Destructed 2 | . . . . . . . 2 . . . . . . . . Prevented 1 | . . . . . . . 1 . . . . . . . . Kills | -11 -10 -10 -10 -9 -8 -7 -7 -7 -6 -6 -5 -5 -5 -5 -4 ------- Run | Yrd Mat Min Exi Min Mat Fac Low Low Fac DSF Fac Was Fac Upp Fac Combat Hostiles Destroyed 26 | . 5 . . . . 6 4 . . 3 2 . . . 6 Melee 14 | . . . . . . 3 . . . 3 2 . . . 6 Guns 5 | . 5 . . . . . . . . . . . . . . AOE 3 | . . . . . . . 3 . . . . . . . . Classes Destroyed 9 | . 2 . . . . 1 1 . . 2 2 . . . 1 Worker 1 | . . . . . . . . . . . 1 . . . . Swarmer 13 | . 3 . . . . 4 3 . . . . . . . 3 Cutter 2 | . . . . . . . . . . 2 . . . . . Grunt 5 | . 2 . . . . . . . . . 1 . . . 2 Duelist 1 | . . . . . . . . . . . 1 . . . . Sentry 2 | . . . . . . 2 . . . . . . . . . Hunter 1 | . . . . . . . 1 . . . . . . . . Programmer 1 | . . . . . . . . . . . . . . . 1 Heavy 1 | . . . . . . . . . . 1 . . . . . Best Kill Streak 4 | . 2 . . . . 4 2 . . 2 2 . . . 2 Combat Bots Only 4 | . 2 . . . . 4 2 . . 2 1 . . . 2 Max Kills in Single Turn 2 | . 1 . . . . 1 2 . . 1 1 . . . 1 Gunslinging . | . . . . . . . . . . . . . . . . Exploded 2 | . . . . . . . 2 . . . . . . . . Melee 1 | . . . . . . 1 . . . 1 1 . . . 1 Uniques/NPCs Destroyed . | . . . . . . . . . . . . . . . . Combat | -11 -10 -10 -10 -9 -8 -7 -7 -7 -6 -6 -5 -5 -5 -5 -4 -------- Run | Yrd Mat Min Exi Min Mat Fac Low Low Fac DSF Fac Was Fac Upp Fac Hostile Shots Fired 493 | . 89 . . 3 30 36 16 . . 62 29 2 53 4 169 Missed 174 | . 29 . . 3 13 18 8 . . 19 5 1 9 2 67 Damage Taken 6055 | . 713 . . . 260 232 128 . . 1068 547 33 1024 57 1993 Core 3039 | . 125 . . . 31 129 12 . . 640 265 33 583 57 1164 Absorbed by Shields 73 | . . . . . . . . . . 73 . . . . . Core Remaining (%) 58 | 100 . . . 50 94 . . 79 . 24 . . . 6 . Volleys Fired 36 | . 33 . . . . . . . . . . . 3 . . Largest 1 | . 1 . . . . . . . . . . . 1 . . Hottest 66 | . 40 . . . . . . . . . . . 66 . . Shots Fired 36 | . 33 . . . . . . . . . . . 3 . . Gun 33 | . 33 . . . . . . . . . . . . . . Cannon 3 | . . . . . . . . . . . . . 3 . . Launcher . | . . . . . . . . . . . . . . . . Special . | . . . . . . . . . . . . . . . . Kinetic 3 | . . . . . . . . . . . . . 3 . . Thermal 33 | . 33 . . . . . . . . . . . . . . Explosive . | . . . . . . . . . . . . . . . . Electromagnetic . | . . . . . . . . . . . . . . . . Robot Hit Streak 8 | . 7 . . . . . . . . . . . 8 . . Robot Miss Streak 5 | . 5 . . . . . . . . . . . 1 . . Penetration Max . | . . . . . . . . . . . . . . . . Secondary Targets . | . . . . . . . . . . . . . . . . Shots Hit Robots 101 | . 23 . . . . 7 18 . . 15 11 . 2 . 25 Core Hits 42 | . 12 . . . . 2 5 . . 6 6 . . . 11 Critical Kills 1 | . . . . . . 1 . . . . . . . . . Critical Parts Destroyed 1 | . . . . . . 1 . . . . . . . . . Critical Strikes 14 | . . . . . . 2 . . . . 3 . 1 . 8 Blast 1 | . . . . . . . . . . . . . 1 . . Smash 2 | . . . . . . 2 . . . . . . . . . Sever 11 | . . . . . . . . . . . 3 . . . 8 Melee Attacks 94 | . . . . . . 9 20 . . 21 15 . . . 29 Impact 11 | . . . . . . 9 2 . . . . . . . . Slashing 65 | . . . . . . . . . . 21 15 . . . 29 Piercing 15 | . . . . . . . 15 . . . . . . . . Sneak Attacks 7 | . . . . . . . 6 . . . 1 . . . . Combat Hostiles 6 | . . . . . . . 6 . . . . . . . . Follow-up Attacks 6 | . . . . . . . 1 . . 2 . . . . 3 Damage Inflicted 2283 | . 271 . . . . 359 108 . . 319 446 . 89 . 691 Guns 252 | . 252 . . . . . . . . . . . . . . Cannons 88 | . . . . . . . . . . . . . 88 . . Explosions . | . . . . . . . . . . . . . . . . Melee 1913 | . . . . . . 359 108 . . 319 441 . . . 686 Ramming 30 | . 19 . . . . . . . . . 5 . 1 . 5 Kinetic 88 | . . . . . . . . . . . . . 88 . . Thermal 252 | . 252 . . . . . . . . . . . . . . Explosive . | . . . . . . . . . . . . . . . . Electromagnetic . | . . . . . . . . . . . . . . . . Impact 436 | . . . . . . 359 77 . . . . . . . . Slashing 1446 | . . . . . . . . . . 319 441 . . . 686 Piercing 31 | . . . . . . . 31 . . . . . . . . Highest Corruption 2 | . . . . . . 1 1 1 . . 1 1 1 1 2 Average Corruption 1 | . . . . . . 1 1 1 . . 1 1 1 1 1 Corruption Purged . | . . . . . . . . . . . . . . . . Corruption Blocked . | . . . . . . . . . . . . . . . . Effects 11 | . . . . . . . 2 1 . . . . 4 . 4 Message Errors 2 | . . . . . . . . . . . . . 2 . . Matter Fused 3 | . . . . . . . . 1 . . . . 1 . 1 Heat Flow Errors 3 | . . . . . . . . . . . . . 1 . 2 Energy Discharges 2 | . . . . . . . 2 . . . . . . . . Data Loss (minor) 1 | . . . . . . . . . . . . . . . 1 Overload Shots . | . . . . . . . . . . . . . . . . Overflow Damage 154 | . . . . . . 119 35 . . . . . . . . Projectiles . | . . . . . . . . . . . . . . . . Explosions . | . . . . . . . . . . . . . . . . Melee 154 | . . . . . . 119 35 . . . . . . . . Knockbacks 1 | . . . . . . . 1 . . . . . . . . Impact 1 | . . . . . . . 1 . . . . . . . . Kinetic . | . . . . . . . . . . . . . . . . Secondary . | . . . . . . . . . . . . . . . . Self-Inflicted Damage 4 | . . . . . . . . . . . 2 . . . 2 Shots . | . . . . . . . . . . . . . . . . Rammed 9 | . 5 . . . . . . . . . 2 . . . 2 Targets Rammed 23 | . 16 . . . . . . . . . 2 . 3 . 2 Kicked 14 | . 11 . . . . . . . . . . . 3 . . Crushed . | . . . . . . . . . . . . . . . . Highest Temperature 253 | . 63 . . . 8 . 24 . . . . . 138 . 253 Average Temperature 36 | . 21 . . . 8 . 12 . . . . . 54 . 81 Received Heat Transfer 1235 | . 342 . . . 135 6 . . . . 192 . 288 9 263 Siege Activations . | . . . . . . . . . . . . . . . . Robots Corrupted 4 | . . . . . . 3 1 . . . . . . . . Combat Hostiles 4 | . . . . . . 3 1 . . . . . . . . Parts Fried 5 | . . . . . . 1 4 . . . . . . . . Impact Corruptions 7 | . . . . . . 6 1 . . . . . . . . Robots Melted . | . . . . . . . . . . . . . . . . Combat Hostiles . | . . . . . . . . . . . . . . . . Parts Melted . | . . . . . . . . . . . . . . . . Heat Transferred 575 | . 575 . . . . . . . . . . . . . . Parts Sabotaged . | . . . . . . . . . . . . . . . . Parts Stolen . | . . . . . . . . . . . . . . . . Parts Stripped . | . . . . . . . . . . . . . . . . Power Chain Reactions . | . . . . . . . . . . . . . . . . Alert | -11 -10 -10 -10 -9 -8 -7 -7 -7 -6 -6 -5 -5 -5 -5 -4 ------- Run | Yrd Mat Min Exi Min Mat Fac Low Low Fac DSF Fac Was Fac Upp Fac Peak Influence 331 | . 165 48 . 123 192 317 . . 217 215 97 26 54 . 331 Initial 217 | . . 48 . . 47 82 . . 217 155 70 26 11 . . Average 119 | . 82 48 . 65 79 276 . . 217 157 77 24 27 . 140 Maximum Alert Level 1 | . . . . . . 1 . . 1 1 . . . . 1 Low Security (%) 76 | 100 100 100 . 100 100 6 . . . 92 100 100 100 . 69 Level 1 23 | . . . . . . 93 . . 100 7 . . . . 30 Level 2 . | . . . . . . . . . . . . . . . . Level 3 . | . . . . . . . . . . . . . . . . Level 4 . | . . . . . . . . . . . . . . . . Level 5 . | . . . . . . . . . . . . . . . . High Security . | . . . . . . . . . . . . . . . . Max Security . | . . . . . . . . . . . . . . . . Squads Dispatched 15 | . 1 . . . 3 2 . . . 2 1 . 1 . 5 Investigation 5 | . . . . . 2 1 . . . . 1 . . . 1 Extermination 3 | . . . . . . . . . . . . . 1 . 2 Reinforcement 7 | . 1 . . . 1 1 . . . 2 . . . . 2 Assault . | . . . . . . . . . . . . . . . . Garrison . | . . . . . . . . . . . . . . . . Intercept . | . . . . . . . . . . . . . . . . Searches Triggered . | . . . . . . . . . . . . . . . . Construction Impeded . | . . . . . . . . . . . . . . . . Haulers Reinforced . | . . . . . . . . . . . . . . . . Active Scanning Responses . | . . . . . . . . . . . . . . . . Cargo Convoy Interrupts . | . . . . . . . . . . . . . . . . Stealth | -11 -10 -10 -10 -9 -8 -7 -7 -7 -6 -6 -5 -5 -5 -5 -4 --------- Run | Yrd Mat Min Exi Min Mat Fac Low Low Fac DSF Fac Was Fac Upp Fac Distress Signals 2 | . . . . . 2 . . . . . . . . . . Communications Jammed . | . . . . . . . . . . . . . . . . Distress Signals . | . . . . . . . . . . . . . . . . Times Spotted 124 | . 14 . . 4 19 13 10 2 . 8 6 7 5 6 30 Peak Tracking Total 13 | . 5 . . 3 13 5 4 3 . 4 5 5 6 8 7 Tactical Retreats 21 | . 1 . . 2 1 3 2 2 . 2 . 1 . . 7 Traps | -11 -10 -10 -10 -9 -8 -7 -7 -7 -6 -6 -5 -5 -5 -5 -4 ------- Run | Yrd Mat Min Exi Min Mat Fac Low Low Fac DSF Fac Was Fac Upp Fac Traps Triggered 10 | . . . . . 2 . . . . 3 1 . 1 . 3 Indirectly . | . . . . . . . . . . . . . . . . Trap Hack Attempts . | . . . . . . . . . . . . . . . . Triggered . | . . . . . . . . . . . . . . . . Disarmed . | . . . . . . . . . . . . . . . . Reprogrammed . | . . . . . . . . . . . . . . . . Reused . | . . . . . . . . . . . . . . . . Traps Extracted . | . . . . . . . . . . . . . . . . Installed . | . . . . . . . . . . . . . . . . Triggered 2 | . . . . . . . 2 . . . . . . . . Machines | -11 -10 -10 -10 -9 -8 -7 -7 -7 -6 -6 -5 -5 -5 -5 -4 ---------- Run | Yrd Mat Min Exi Min Mat Fac Low Low Fac DSF Fac Was Fac Upp Fac Machines Disabled . | . . . . . . . . . . . . . . . . Max in Single Turn . | . . . . . . . . . . . . . . . . Machines Repaired . | . . . . . . . . . . . . . . . . Machines Dismantled . | . . . . . . . . . . . . . . . . Machines Sabotaged . | . . . . . . . . . . . . . . . . Overloaded Fab Kills . | . . . . . . . . . . . . . . . . Hacking | -11 -10 -10 -10 -9 -8 -7 -7 -7 -6 -6 -5 -5 -5 -5 -4 --------- Run | Yrd Mat Min Exi Min Mat Fac Low Low Fac DSF Fac Was Fac Upp Fac Machines Accessed 17 | . . . 4 . . 3 1 2 1 . 2 . 2 . 2 Terminals 5 | . . . . . . 1 . 1 1 . 1 . . . 1 Fabricators 1 | . . . . . . 1 . . . . . . . . . Repair Stations 1 | . . . . . . . . . . . . . 1 . . Recycling Units . | . . . . . . . . . . . . . . . . Scanalyzers 3 | . . . . . . . . . . . 1 . 1 . 1 Garrison Access 1 | . . . . . . 1 . . . . . . . . . Total Hacks 41 | . . . 4 . . 7 1 2 2 . 4 . 14 . 7 Successful 23 | . . . 4 . . 2 1 2 1 . 3 . 9 . 1 Failed 18 | . . . . . . 5 . . 1 . 1 . 5 . 6 Catastrophic 5 | . . . . . . 1 . . . . . . 1 . 3 Database Lockouts . | . . . . . . . . . . . . . . . . Manual 4 | . . . . . . 3 . . . . 1 . . . . Terminals 9 | . . . . . . 3 . 1 2 . 1 . . . 2 Fabricators 2 | . . . . . . 2 . . . . . . . . . Repair Stations 3 | . . . . . . . . . . . . . 3 . . Recycling Units . | . . . . . . . . . . . . . . . . Scanalyzers 19 | . . . . . . . . . . . 3 . 11 . 5 Garrison Access 2 | . . . . . . 2 . . . . . . . . . Terminal Hacks 9 | . . . 4 . . . 1 2 1 . 1 . . . . Record 5 | . . . 4 . . . . 1 . . . . . . . Open Door 2 | . . . . . . . 1 1 . . . . . . . Open DSF 1 | . . . . . . . . . 1 . . . . . . Alert Level 1 | . . . . . . . . . . . 1 . . . . Fabricator Hacks 2 | . . . . . . 2 . . . . . . . . . Network Status 1 | . . . . . . 1 . . . . . . . . . Build 1 | . . . . . . 1 . . . . . . . . . Repair Station Hacks 1 | . . . . . . . . . . . . . 1 . . Scan Component 1 | . . . . . . . . . . . . . 1 . . Recycling Unit Hacks . | . . . . . . . . . . . . . . . . Scanalyzer 11 | . . . . . . . . . . . 2 . 8 . 1 Insert Component 6 | . . . . . . . . . . . 1 . 4 . 1 Analyze 5 | . . . . . . . . . . . 1 . 4 . . Garrison Access Hacks . | . . . . . . . . . . . . . . . . Unauthorized Hacks . | . . . . . . . . . . . . . . . . Terminals . | . . . . . . . . . . . . . . . . Fabricators . | . . . . . . . . . . . . . . . . Repair Stations . | . . . . . . . . . . . . . . . . Recycling Units . | . . . . . . . . . . . . . . . . Scanalyzers . | . . . . . . . . . . . . . . . . Garrison Access . | . . . . . . . . . . . . . . . . Data Cores Recovered . | . . . . . . . . . . . . . . . . Used . | . . . . . . . . . . . . . . . . Hacking Detections 7 | . . . . . . 3 . . . . 1 . 1 . 2 Full Trace Events 3 | . . . . . . 1 . . . . 1 . . . 1 Feedback Events 1 | . . . . . . 1 . . . . . . . . . Corruption 1 | . . . . . . 1 . . . . . . . . . Feedback Blocked . | . . . . . . . . . . . . . . . . Robot Schematics Acquired . | . . . . . . . . . . . . . . . . Robots Built 2 | . . . . . . 2 . . . . . . . . . Authchips . | . . . . . . . . . . . . . . . . Time 81 | . . . . . . 81 . . . . . . . . . Total Robot Build Rating 2 | . . . . . . 2 . . . . . . . . . Part Schematics Acquired 4 | . . . . . . . . . . . 1 . 3 . . Parts Built . | . . . . . . . . . . . . . . . . Authchips . | . . . . . . . . . . . . . . . . Time . | . . . . . . . . . . . . . . . . Total Part Build Rating . | . . . . . . . . . . . . . . . . Parts Repaired . | . . . . . . . . . . . . . . . . Time . | . . . . . . . . . . . . . . . . Parts Recycled . | . . . . . . . . . . . . . . . . Recycled Matter . | . . . . . . . . . . . . . . . . Retrieved Matter . | . . . . . . . . . . . . . . . . Retrieved Components . | . . . . . . . . . . . . . . . . Parts Scanalyzed 5 | . . . . . . . . . . . 1 . 3 . 1 Part Schematics Acquired 4 | . . . . . . . . . . . 1 . 3 . . Parts Damaged 1 | . . . . . . . . . . . . . . . 1 Bothacking | -11 -10 -10 -10 -9 -8 -7 -7 -7 -6 -6 -5 -5 -5 -5 -4 ------------ Run | Yrd Mat Min Exi Min Mat Fac Low Low Fac DSF Fac Was Fac Upp Fac Used RIF Installer . | . . . . . . . . . . . . . . . . Robots Hacked 1 | . . . . . . . 1 . . . . . . . . Non-combat . | . . . . . . . . . . . . . . . . Combat 1 | . . . . . . . 1 . . . . . . . . Robot Hacks Applied 1 | . . . . . . . 1 . . . . . . . . parse_system 1 | . . . . . . . 1 . . . . . . . . Relay Couplers Released . | . . . . . . . . . . . . . . . . Fabnet Peak Effective % . | . . . . . . . . . . . . . . . . Robots Rewired . | . . . . . . . . . . . . . . . . Allies Hacked . | . . . . . . . . . . . . . . . . Hacks Repelled . | . . . . . . . . . . . . . . . . Allies | -11 -10 -10 -10 -9 -8 -7 -7 -7 -6 -6 -5 -5 -5 -5 -4 -------- Run | Yrd Mat Min Exi Min Mat Fac Low Low Fac DSF Fac Was Fac Upp Fac Total Allies 5 | . . . . 2 . 2 . . . . . . . 1 . Largest Group 2 | . . . . 2 . 2 . . . . . . . 1 1 Highest-Rated Group 127 | . . . . 51 . 20 . . . . . . . 127 127 Highest-Rated Ally 127 | . . . . 31 . 10 . . . . . . . 127 127 Total Orders . | . . . . . . . . . . . . . . . . Ally Attacks 21 | . . . . 8 . . . . . . . . . . 13 Total Damage 1292 | . . . . 118 . . . . . . . . . . 1174 Kills 13 | . . . . 3 . . . . . . . . . . 10 Allies Corrupted . | . . . . . . . . . . . . . . . . Allies Melted . | . . . . . . . . . . . . . . . . Intel | -11 -10 -10 -10 -9 -8 -7 -7 -7 -6 -6 -5 -5 -5 -5 -4 ------- Run | Yrd Mat Min Exi Min Mat Fac Low Low Fac DSF Fac Was Fac Upp Fac Robot Analysis Total . | . . . . . . . . . . . . . . . . Derelict Logs Recovered 6 | . . 2 . 1 . . 1 1 . . . . . 1 . Drone Launches . | . . . . . . . . . . . . . . . . Drone Recoveries . | . . . . . . . . . . . . . . . . Exploration | -11 -10 -10 -10 -9 -8 -7 -7 -7 -6 -6 -5 -5 -5 -5 -4 ------------- Run | Yrd Mat Min Exi Min Mat Fac Low Low Fac DSF Fac Was Fac Upp Fac Turns Passed 3149 | 48 349 115 190 111 139 397 260 202 7 163 133 111 293 19 612 Spaces Moved 5366 | 30 160 244 514 299 345 660 587 695 25 183 125 195 303 38 963 Core 1020 | 4 . . . . . . . . . 11 51 195 132 38 589 Treads 157 | 26 131 . . . . . . . . . . . . . . Legs 259 | . 29 23 . . . . . . . . 24 . 171 . 12 Wheels . | . . . . . . . . . . . . . . . . Hover 26 | . . . . . . . . . . . . . . . 26 Flight 3904 | . . 221 514 299 345 660 587 695 25 172 50 . . . 336 Fastest Speed 26 | 50 120 37 37 37 28 29 29 27 27 27 45 50 50 50 26 Average Speed 44 | 145 152 44 37 37 34 31 30 27 27 35 63 50 89 50 45 Slowest Speed 160 | 160 160 120 37 37 37 35 115 29 27 112 120 50 120 50 120 Overloaded Moves . | . . . . . . . . . . . . . . . . Propulsion Burnouts . | . . . . . . . . . . . . . . . . Robots Hopped 24 | . . 1 . 5 8 1 1 . . . . . . . 8 Cave-ins Triggered . | . . . . . . . . . . . . . . . . Exploration Rate (%) 40 | 4 39 55 87 61 36 16 62 75 1 93 6 82 10 7 18 Regions Visited 15 Branch Regions 6 Pre-discovered Areas 3 | . . 1 . 2 . . . . . . . . . . . Known Exits Taken 1 | . . . . . . . . . 1 . . . . . . Unknown Exits Taken 11 | 1 1 1 1 1 1 1 1 1 . . . . 1 1 . Scrap Searched 8 | . . 3 . 3 . . . 2 . . . . . . . Spaces Dug 1 | . . . . . . . . . . . . . . . 1 Terrain Destroyed 2 | . . . . . . . . . . . . . 1 . 1 Melee 1 | . . . . . . . . . . . . . . . 1 Projectile 1 | . . . . . . . . . . . . . 1 . . AOE . | . . . . . . . . . . . . . . . . Terrain Rammed . | . . . . . . . . . . . . . . . . Walls Destroyed . | . . . . . . . . . . . . . . . . Machines Disabled . | . . . . . . . . . . . . . . . . Actions | -11 -10 -10 -10 -9 -8 -7 -7 -7 -6 -6 -5 -5 -5 -5 -4 --------- Run | Yrd Mat Min Exi Min Mat Fac Low Low Fac DSF Fac Was Fac Upp Fac Total 5931 | 33 226 247 513 293 353 829 665 702 24 248 154 207 318 37 1082 Wait 238 | . 14 . . . 9 133 46 . . 5 1 4 . . 26 Move 5305 | 29 159 241 513 288 328 657 584 694 24 182 125 194 302 37 948 Hop 23 | . . 1 . 5 8 1 1 . . . . . . . 7 Pick Up 22 | . 2 1 . . 1 6 1 1 . . . 4 . . 6 Fast Attach 72 | 4 1 2 . . 4 11 6 3 . 8 5 2 6 . 20 Attach 21 | . 1 . . . 1 3 . 1 . . 5 1 3 . 6 Detach 10 | . . . . . 1 1 . . . 1 1 1 . . 5 Swap 7 | . . . . . 1 2 3 . . . . . . . 1 Drop 29 | . . 2 . . . 6 5 3 . 6 . 1 1 . 5 Fire 36 | . 33 . . . . . . . . . . . 3 . . Melee 88 | . . . . . . 9 19 . . 19 15 . . . 26 Ram 4 | . . . . . . . . . . . 2 . . . 2 Kick 14 | . 11 . . . . . . . . . . . 3 . . Crush 5 | . 5 . . . . . . . . . . . . . . Escape Stasis 57 | . . . . . . . . . . 27 . . . . 30 Rewire . | . . . . . . . . . . . . . . . . Trap . | . . . . . . . . . . . . . . . . Miscellaneous . | . . . . . . . . . . . . . . . . Route ------- -11/Scrapyard -10/Materials -10/Mines -10/Exiles -9/Mines -8/Materials -7/Factory -7/Lower Caves -7/Lower Caves (discovered 2 exits: *Fac / [*Dat]) -6/Factory -6/DSF -5/Factory -5/Waste -5/Factory -5/Upper Caves -4/Factory History --------- Turn | Location | Event 3 | -11/Scrapyard | Discovered new exit (range 15) 49 | -11/Scrapyard | Entered Materials 299 | -10/Materials | Discovered new exit (range 9) 316 | -10/Materials | Build established: Mutant 398 | -10/Materials | Entered Mines 413 | -10/Mines | Met a Derelict bent on vengeance 418 | -10/Mines | Lost 3 parts (1p1n1w) 438 | -10/Mines | Learned location of Mines (-9) 454 | -10/Mines | Learned 2 Materials zone layouts 508 | -10/Mines | Deemed a non-threat by the Exiles lab entrance 508 | -10/Mines | Discovered new exit (range 5) 513 | -10/Mines | Entered Exiles 513 | -10/Exiles | Found Exiles lab abandoned 629 | -10/Exiles | Discovered new exit (range 10) 703 | -10/Exiles | Entered Mines 744 | -9/Mines | Learned location of Zion (-6) 772 | -9/Mines | Learned location of Storage (-9) 808 | -9/Mines | Discovered new exit (range 16) 814 | -9/Mines | Entered Materials 814 | -8/Materials | Evolved 4 slots: Propulsion x2, Utility x2 921 | -8/Materials | Discovered new exit (range 14) 953 | -8/Materials | Entered Factory 953 | -7/Factory | Evolved 2 slots: Utility x2 1095 | -7/Factory | Fabricated T-07 Excavator (x2) 1303 | -7/Factory | Discovered new exit (range 5) 1350 | -7/Factory | Entered Lower Caves 1503 | -7/Lower Caves | Encountered a Warlord checkpoint 1571 | -7/Lower Caves | Discovered new exit (range 16) 1595 | -7/Lower Caves | Learned Factory emergency access door positions 1610 | -7/Lower Caves | Entered another Lower Caves area 1703 | -7/Lower Caves | Learned Factory garrison access intel 1715 | -7/Lower Caves | Discovered new exit (range 6) 1770 | -7/Lower Caves | Build established: Scavenger-Sprinter 1803 | -7/Lower Caves | Discovered new exit (range 13) 1812 | -7/Lower Caves | Entered Factory 1812 | -6/Factory | Evolved 2 slots: Utility x2 1814 | -6/Factory | Loaded intel: 4 garrison access locations 1819 | -6/Factory | Identified exit to DSF 1819 | -6/Factory | Entered DSF 1838 | -6/DSF | Additional patrols routed to DSF 1904 | -6/DSF | Core integrity fell below 50% 1927 | -6/DSF | Lost 10 parts (4n4u2w) 1935 | -6/DSF | Discovered new exit (range 15) 1982 | -6/DSF | Entered Factory 1982 | -5/Factory | Evolved 2 slots: Utility x2 2115 | -5/Factory | Sucked down chute 2115 | -5/Factory | Entered Waste 2136 | -5/Waste | Found Prototype Device 2136 | -5/Waste | Identified Exp. Thermal Defense Suite 2142 | -5/Waste | Spotted C-40 Crusher 2143 | -5/Waste | Lost 3 parts (1p1n1w) 2159 | -5/Waste | Spotted C-40 Crusher 2177 | -5/Waste | Spotted C-40 Crusher 2179 | -5/Waste | Spotted C-40 Crusher 2179 | -5/Waste | Spotted C-40 Crusher 2187 | -5/Waste | Found Imp. Powered Armor 2196 | -5/Waste | Build established: Mutant 2201 | -5/Waste | Spotted C-40 Crusher 2205 | -5/Waste | Crushed by Compactor (1 part destroyed, 1 dropped) 2215 | -5/Waste | Discovered new exit (range 11) 2226 | -5/Waste | Entered Factory 2476 | -5/Factory | Discovered new exit (range 8) 2504 | -5/Factory | Core integrity fell below 50% 2516 | -5/Factory | Core integrity fell below 20% 2519 | -5/Factory | Entered Upper Caves 2520 | -5/Upper Caves | Learned Factory emergency access door positions 2530 | -5/Upper Caves | CL-ANK showed up to help 2533 | -5/Upper Caves | Attracted the attention of an 0b10 outpost 2534 | -5/Upper Caves | CL-ANK revealed a hidden path 2538 | -5/Upper Caves | Entered Factory 2538 | -4/Factory | Accompanied by 1 ally (CL-ANK) 2538 | -4/Factory | Evolved 2 slots: Propulsion x2 2543 | -4/Factory | Lost 6 parts (1p2n1u2w) 2772 | -4/Factory | Build established: Hacker-Mutant 2894 | -4/Factory | Lost 5 parts (2n1u2w) 2947 | -4/Factory | Core integrity fell below 50% 3007 | -4/Factory | Lost 5 parts (1n4u) 3083 | -4/Factory | Core integrity fell below 20% 3150 | -4/Factory | Destroyed by P-70 Sage with Tesla Rifle Last Messages --------------- 03075_ Identified Transmission Jammer. 03089_ Acquired 145 matter. 03092_ G-67 Veteran destroyed. 03093_ VTOL Module destroyed. 03097_ G-67 Veteran Plasma Rifle severed. 03101_ VTOL Module destroyed. 03104_ G-67 Veteran destroyed. 03106_ Critical hit (Burn: +50). 03110_ Acquired Flexi-carbon Leg. 03113_ Dropped Lgt. Nuclear Core. 03125_ Matter Pump disabled. 03126_ P-70 Sage Antigrav System severed. 03128_ Lgt. Antimatter Reactor destroyed. 03129_ P-70 Sage destroyed. 03133_ Acquired Antigrav System. 03135_ Critical hit (Burn: +50). 03135_ VTOL Module destroyed. 03140_ Reaction Control System destroyed. 03144_ S-27 Virus destroyed. 03147_ Transmission Jammer destroyed. Map ----- +----------------------------------------------------+ | | | | | ??????????????????????????#????####??????????????? | | ?????????????????????????? ?? """T????????????? | | ??????????????????????????? ? """?????????????? | | ????????????????????????#? ? ????????? | | ????????????????????????# /// ##??????? | | ????????????????????????# /// #??????? | | ????????????????????????? // """ """ ! #???????? | | ??????????????????????????? """ """ ?????????? | | ????????????????????????????? """ """ ???????????? | | ?????????????????????????????? ?????????????? | | ??????????????????????????????#+#+################ | | ?????????###################### / | | ??????? # # # | | ???????? """ "" # """""" + # """""" | | ????#? """"" T" # ! """""" # + """""" | | ????# """"" "" # """""" + # """""" | | ????# # """""" # # """""" | | ????# """ + # ############## | | ????# """"" # """""" # #????###?????? | | ????# """"" # """""" # ##??? #?????? | | ????# # """""" # ## ?? #?????? | | ????# # """""" # ## #?????? | | ????# ! # [ # ## """ ####### | | ????# ! # @pg # ## """ # | | ??##########+##############p### ## """ # | | ??# ## # | | ??# ## # | | ??# ##"" # """ " | | ??# % ##"T " """ " | | ??# ! ! ##"" # """ " | | ?# ####+#### """ """ "%" ## !%[# | | ?# # ?# """ """ """ #####/######+# | | # # ?# """ """ """ *[% | | # # ! # """ """ | | / # # | | # #!!! + ! | | # #!! # | | ?# #!! # ################ | | ?# # ?# # #?# | | ??# # ?# # #?# | | ??# # !??# / """"""""" ### | | ### # ??# # + | | # #####???# # """"""""" ### | | # #??????# # #?# | | + #?########### T###### """"""""" #?##### | | # #?# #####????# #?????# | | # ######?#"""" #????????# #?????# | | # #??????#"""" #????????# ! #?????# | +----------------------------------------------------+ Best States ------------- Heat Dissipation 43 Energy Generation 21 Energy Capacity 290 Matter Stores 300 Matter Capacity 300 Sight Range 20 Robot Scan Range 18 Terrain Scan Density 10 ECM Strength 2 Additional Mass Support 9 Armor Coverage 225 Evasion (%) 72 Melee Accuracy 6 Core Analysis 9 Recoil Reduction 2 Defensive Hacking 20 Item Schematics ----------------- Power Sword | -5/Factory | Scanalyzed Q-thruster | -5/Factory | Scanalyzed Quantum Reactor | -5/Factory | Scanalyzed Centrium Leg | -5/Factory | Scanalyzed Robot Schematics ------------------ None Fabricated ------------ T-07 Excavator | x2 | -7/Factory | Preloaded Alien Tech Used ----------------- None Achievements -------------- Error 47 Challenges ------------ None Game ------ Seed ThiefFlakSpecial Manual? 0 Play Time 01:05:46 Cumulative 38.8 hours Start 2024.08.31 @ 15:30:59 End 2024.08.31 @ 16:36:44 Sessions 1 Manual Loads 0 Difficulty Rogue Special Mode None Game No. 51 Rogue 51 Adventurer 0 Explorer 0 Win Type - Total 0 Types 0/0/0/0/0/0/0/0/0 Lore% 8 Gallery% 33 Achievement% 28 Wizard Run 0 Options --------- Layout 1 ASCII 0 Keyboard 0 Movement Numpad Keybinds 0 Fullscreen 1 Font 24/Crisp Map View 50x35 Zoom Use 0% Tactical HUD 1 Map Filters NONE Filters NONE Steam 1 RUN: 0d655d0b-55ec-46a4-a184-f821e42589d8